fUSD/lending_fUSD_20260530
["ID","MTS","AMOUNT","RATE_DAILY","PERIOD"]
[423411396,1780089046000,-12.24352555,7.339e-05,2]
[423411372,1780089046000,-158.47876434,7.325e-05,2]
[423411376,1780089046000,-1080.95986326,7.339e-05,2]
[423411385,1780089046000,-510.0,7.339e-05,2]
[423411397,1780089046000,-15664.79661119,7.339e-05,2]
[423411403,1780089046000,-192.0,7.488e-05,2]
[423411398,1780089046000,-192.0,7.348e-05,2]
[423411404,1780089046000,-192.0,7.558e-05,2]
[423411402,1780089046000,-192.0,7.418e-05,2]
[423411405,1780089046000,-150.0,7.584e-05,2]
[423411399,1780089046000,-356.0,7.383e-05,2]
[423411423,1780089047000,-500.0,7.585e-05,2]
[423411425,1780089047000,-500.0,7.585e-05,2]
[423411421,1780089047000,-500.0,7.585e-05,2]
[423411424,1780089047000,-500.0,7.585e-05,2]
[423411419,1780089047000,-500.0,7.585e-05,2]
[423411420,1780089047000,-500.0,7.585e-05,2]
[423411418,1780089047000,-500.0,7.585e-05,2]
[423411416,1780089047000,-500.0,7.585e-05,2]
[423411415,1780089047000,-500.0,7.585e-05,2]
[423411414,1780089047000,-500.0,7.585e-05,2]
[423411422,1780089047000,-500.0,7.585e-05,2]
[423411412,1780089047000,-500.0,7.585e-05,2]
[423411410,1780089047000,-500.0,7.585e-05,2]
[423411411,1780089047000,-500.0,7.585e-05,2]
[423411409,1780089047000,-500.0,7.585e-05,2]
[423411408,1780089047000,-500.0,7.585e-05,2]
[423411406,1780089047000,-500.0,7.585e-05,2]
[423411407,1780089047000,-500.0,7.585e-05,2]
[423411413,1780089047000,-500.0,7.585e-05,2]
[423411426,1780089047000,-295.01071669,7.585e-05,2]
[423411417,1780089047000,-500.0,7.585e-05,2]
[423411427,1780089047000,-215.5484138,7.607e-05,2]
[423411429,1780089047000,-192.0,7.628e-05,2]
[423411447,1780089047000,-3998.25561533,7.813e-05,2]
[423411448,1780089047000,-283.09031463,7.813e-05,2]
[423411446,1780089047000,152.0,9.699e-05,7]
[423411445,1780089047000,-5309.38,7.813e-05,2]
[423411444,1780089047000,-347.22227381,7.813e-05,2]
[423411442,1780089047000,-6986.0,7.76e-05,2]
[423411439,1780089047000,-14706.0,7.744e-05,2]
[423411440,1780089047000,-198298.3528,7.744e-05,2]
[423411443,1780089047000,-4514.08395349,7.813e-05,2]
[423411437,1780089047000,-4882.0286614,7.743e-05,2]
[423411438,1780089047000,-603.0,7.744e-05,2]
[423411436,1780089047000,-1680.0,7.72e-05,2]
[423411430,1780089047000,-250.0,7.652e-05,2]
[423411431,1780089047000,-193.0,7.652e-05,2]
[423411435,1780089047000,-420.0,7.72e-05,2]
[423411433,1780089047000,-197.0,7.698e-05,2]
[423411434,1780089047000,-250.0,7.699e-05,2]
[423411432,1780089047000,-200.0,7.698e-05,2]
[423411441,1780089047000,-1768.69364191,7.747e-05,2]
[423411449,1780089215000,-150.0,7.016e-05,2]
[423411450,1780089239000,-209.09056759,7.023e-05,2]
[423411451,1780089241000,1240.0,0.0001014,5]
[423411452,1780089270000,-13690.0,7.715e-05,2]
[423411453,1780089294000,-13690.0,7.715e-05,2]
[423411455,1780089338000,-11070.0,7.715e-05,2]
[423411458,1780089381000,-500.0,7.714e-05,2]
[423411456,1780089381000,-300.0,7.714e-05,2]
[423411460,1780089381000,-500.0,7.714e-05,2]
[423411457,1780089381000,-150.0,7.714e-05,2]
[423411462,1780089381000,-500.0,7.714e-05,2]
[423411464,1780089381000,-7524.66190969,7.715e-05,2]
[423411461,1780089381000,-500.0,7.714e-05,2]
[423411463,1780089381000,-500.0,7.714e-05,2]
[423411459,1780089381000,-595.33809031,7.714e-05,2]
[423411465,1780089385000,1000.0,0.00027397,120]
[423411466,1780089386000,-500.0,7.698e-05,2]
[423411470,1780089386000,-522.13717374,7.714e-05,2]
[423411467,1780089386000,-522.13717374,7.714e-05,2]
[423411468,1780089386000,-522.13717374,7.714e-05,2]
[423411469,1780089386000,-522.13717374,7.714e-05,2]
[423411471,1780089386000,-522.13717374,7.714e-05,2]
[423411473,1780089386000,-522.13717374,7.714e-05,2]
[423411477,1780089386000,-522.13717374,7.714e-05,2]
[423411474,1780089386000,-522.13717374,7.714e-05,2]
[423411472,1780089386000,-522.13717374,7.714e-05,2]
[423411475,1780089386000,-522.13717374,7.714e-05,2]
[423411478,1780089386000,-522.13717374,7.714e-05,2]
[423411479,1780089386000,-522.13717374,7.714e-05,2]
[423411481,1780089386000,-522.13717374,7.714e-05,2]
[423411482,1780089386000,-522.13717374,7.714e-05,2]
[423411480,1780089386000,-522.13717374,7.714e-05,2]
[423411483,1780089386000,-522.13717374,7.714e-05,2]
[423411486,1780089386000,-522.13717374,7.714e-05,2]
[423411485,1780089386000,-522.13717374,7.714e-05,2]
[423411484,1780089386000,-522.13717374,7.714e-05,2]
[423411487,1780089386000,-127.2565252,7.714e-05,2]
[423411476,1780089386000,-522.13717374,7.714e-05,2]
[423411496,1780089429000,-522.13717374,7.714e-05,2]
[423411495,1780089429000,-522.13717374,7.714e-05,2]
[423411494,1780089429000,-522.13717374,7.714e-05,2]
[423411492,1780089429000,-522.13717374,7.714e-05,2]
[423411488,1780089429000,-394.88064854,7.714e-05,2]
[423411491,1780089429000,-522.13717374,7.714e-05,2]
[423411500,1780089429000,-522.13717374,7.714e-05,2]
[423411490,1780089429000,-522.13717374,7.714e-05,2]
[423411493,1780089429000,-522.13717374,7.714e-05,2]
[423411497,1780089429000,-522.13717374,7.714e-05,2]
[423411489,1780089429000,-522.13717374,7.714e-05,2]
[423411498,1780089429000,-522.13717374,7.714e-05,2]
[423411507,1780089429000,-522.13717374,7.714e-05,2]
[423411508,1780089429000,-522.13717374,7.714e-05,2]
[423411509,1780089429000,-232.37587666,7.714e-05,2]
[423411505,1780089429000,-522.13717374,7.714e-05,2]
[423411499,1780089429000,-522.13717374,7.714e-05,2]
[423411504,1780089429000,-522.13717374,7.714e-05,2]
[423411503,1780089429000,-522.13717374,7.714e-05,2]
[423411501,1780089429000,-522.13717374,7.714e-05,2]
[423411502,1780089429000,-522.13717374,7.714e-05,2]
[423411506,1780089429000,-522.13717374,7.714e-05,2]
[423411511,1780089453000,-144.88064854,7.712e-05,2]
[423411510,1780089453000,-250.0,7.706e-05,2]
[423411514,1780089478000,-394.88064854,7.672e-05,2]
[423411515,1780089501000,-250.0,7.615e-05,2]
[423411517,1780089506000,-5.9409864,7.615e-05,2]
[423411516,1780089506000,-165.47,7.191e-05,2]
[423411518,1780089511000,-10365.0,7.615e-05,2]
[423411519,1780089534000,330.0,8.219e-05,3]
[423411520,1780089535000,-300.0,6.928e-05,2]
[423411521,1780089560000,-200.0,6.911e-05,2]
[423411522,1780089560000,-127.0,6.928e-05,2]
[423411523,1780089568000,330.0,8.219e-05,3]
[423411525,1780089603000,267.0,0.00027808,120]
[423411526,1780089643000,1000.0,0.00027397,120]
[423411531,1780089712000,603.51,6.572e-05,2]
[423411530,1780089712000,603.51,6.536e-05,2]
[423411529,1780089712000,603.51,6.5e-05,2]
[423411528,1780089712000,527.04689321,6.465e-05,2]
[423411527,1780089712000,76.46310679,6.465e-05,2]
[423411532,1780089712000,603.51,6.608e-05,2]
[423411534,1780089742000,150.0,6.519e-05,2]
[423411537,1780089801000,150.0,6.5e-05,2]
[423411538,1780089847000,1847.0,9.669e-05,5]
[423411540,1780089907000,187.0,0.00027857,120]
[423411541,1780089953000,-327.0,6.63e-05,2]
[423411542,1780089976000,-7.12,6.63e-05,2]
[423411544,1780090020000,-314.0,6.644e-05,2]
[423411543,1780090020000,330.0,8.219e-05,3]
[423411546,1780090024000,-24.49,6.679e-05,2]
[423411545,1780090024000,-289.51,6.644e-05,2]
[423411547,1780090068000,900.0,9.9e-05,3]
[423411549,1780090068000,1400.0,0.0001,3]
[423411548,1780090068000,-579.02,6.679e-05,2]
[423411550,1780090072000,-579.02,6.715e-05,2]
[423411551,1780090140000,-24.49,6.715e-05,2]
[423411552,1780090143000,-24.49,6.718e-05,2]
[423411553,1780090147000,-24.49,6.718e-05,2]
[423411559,1780090169000,75.6763042,6.037e-05,2]
[423411557,1780090169000,220.03,6.037e-05,2]
[423411558,1780090169000,150.43,6.037e-05,2]
[423411556,1780090169000,53.8636958,6.037e-05,2]
[423411555,1780090169000,330.0,8.219e-05,3]
[423411560,1780090170000,1000.0,0.00028079,120]
[423411563,1780090171000,-603.51,6.751e-05,2]
[423411562,1780090171000,-150.0,6.72e-05,2]
[423411564,1780090171000,-209.09056759,6.751e-05,2]
[423411566,1780090171000,-1000.0,6.805e-05,2]
[423411561,1780090171000,-201.02,6.718e-05,2]
[423411565,1780090171000,-603.51,6.787e-05,2]
[423411569,1780090171000,-200.47,6.835e-05,2]
[423411568,1780090171000,-603.51,6.823e-05,2]
[423411571,1780090171000,-1005.41801641,6.856e-05,2]
[423411570,1780090171000,-1188.0,6.836e-05,2]
[423411567,1780090171000,-150.0,6.821e-05,2]
[423411572,1780090176000,204.91056666,0.00027857,120]
[423411573,1780090201000,-500.0,6.82e-05,2]
[423411574,1780090208000,203.0,0.00026674,120]
[423411575,1780090210000,203.0,0.00028007,120]
[423411578,1780090210000,247.8113618,6.201e-05,2]
[423411576,1780090210000,175.8536958,6.201e-05,2]
[423411580,1780090210000,1200.0,6.201e-05,2]
[423411579,1780090210000,234.3499608,6.201e-05,2]
[423411581,1780090210000,228.3649816,6.201e-05,2]
[423411577,1780090210000,251.53,6.201e-05,2]
[423411613,1780090231000,-555.78489248,6.82e-05,2]
[423411615,1780090231000,-555.78489248,6.82e-05,2]
[423411610,1780090231000,-555.78489248,6.82e-05,2]
[423411607,1780090231000,-555.78489248,6.82e-05,2]
[423411608,1780090231000,-553.7149733,6.82e-05,2]
[423411611,1780090231000,-555.78489248,6.82e-05,2]
[423411609,1780090231000,-2.06991918,6.82e-05,2]
[423411614,1780090231000,-555.78489248,6.82e-05,2]
[423411618,1780090231000,-555.78489248,6.82e-05,2]
[423411606,1780090231000,-555.78489248,6.82e-05,2]
[423411604,1780090231000,-555.78489248,6.82e-05,2]
[423411593,1780090231000,-1200.0,6.819e-05,2]
[423411602,1780090231000,-555.78489248,6.82e-05,2]
[423411603,1780090231000,-555.78489248,6.82e-05,2]
[423411601,1780090231000,-555.78489248,6.82e-05,2]
[423411600,1780090231000,-555.78489248,6.82e-05,2]
[423411598,1780090231000,-506.7786382,6.82e-05,2]
[423411599,1780090231000,-555.78489248,6.82e-05,2]
[423411597,1780090231000,-500.0,6.82e-05,2]
[423411594,1780090231000,-150.0,6.819e-05,2]
[423411595,1780090231000,-250.0,6.819e-05,2]
[423411612,1780090231000,-555.78489248,6.82e-05,2]
[423411605,1780090231000,-555.78489248,6.82e-05,2]
[423411617,1780090231000,-555.78489248,6.82e-05,2]
[423411596,1780090231000,-312.86127289,6.82e-05,2]
[423411622,1780090231000,-429.94179102,6.82e-05,2]
[423411616,1780090231000,-555.78489248,6.82e-05,2]
[423411659,1780090231000,-555.78489248,6.82e-05,2]
[423411657,1780090231000,-555.78489248,6.82e-05,2]
[423411653,1780090231000,-555.78489248,6.82e-05,2]
[423411651,1780090231000,-555.78489248,6.82e-05,2]
[423411649,1780090231000,-555.78489248,6.82e-05,2]
[423411643,1780090231000,-555.78489248,6.82e-05,2]
[423411646,1780090231000,-555.78489248,6.82e-05,2]
[423411639,1780090231000,-555.78489248,6.82e-05,2]
[423411645,1780090231000,-555.78489248,6.82e-05,2]
[423411635,1780090231000,-555.78489248,6.82e-05,2]
[423411641,1780090231000,-555.78489248,6.82e-05,2]
[423411655,1780090231000,-555.78489248,6.82e-05,2]
[423411637,1780090231000,-555.78489248,6.82e-05,2]
[423411647,1780090231000,-555.78489248,6.82e-05,2]
[423411620,1780090231000,-381.25431595,6.82e-05,2]
[423411624,1780090231000,-274.15689854,6.82e-05,2]
[423411623,1780090231000,-125.84310146,6.82e-05,2]
[423411625,1780090231000,-281.62799394,6.82e-05,2]
[423411619,1780090231000,-555.78489248,6.82e-05,2]
[423411627,1780090231000,-555.78489248,6.82e-05,2]
[423411628,1780090231000,-555.78489248,6.82e-05,2]
[423411633,1780090231000,-555.78489248,6.82e-05,2]
[423411631,1780090231000,-555.78489248,6.82e-05,2]
[423411621,1780090231000,-174.53057653,6.82e-05,2]
[423411690,1780090232000,-549.00702794,6.82e-05,2]
[423411697,1780090232000,-549.00702794,6.82e-05,2]
[423411688,1780090232000,-549.00702794,6.82e-05,2]
[423411691,1780090232000,-549.00702794,6.82e-05,2]
[423411692,1780090232000,-549.00702794,6.82e-05,2]
[423411693,1780090232000,-549.00702794,6.82e-05,2]
[423411695,1780090232000,-549.00702794,6.82e-05,2]
[423411694,1780090232000,-549.00702794,6.82e-05,2]
[423411696,1780090232000,-549.00702794,6.82e-05,2]
[423411700,1780090232000,-549.00702794,6.82e-05,2]
[423411699,1780090232000,-549.00702794,6.82e-05,2]
[423411701,1780090232000,-549.00702794,6.82e-05,2]
[423411705,1780090232000,-549.00702794,6.82e-05,2]
[423411704,1780090232000,-549.00702794,6.82e-05,2]
[423411702,1780090232000,-549.00702794,6.82e-05,2]
[423411703,1780090232000,-549.00702794,6.82e-05,2]
[423411707,1780090232000,-564.25722318,6.82e-05,2]
[423411686,1780090232000,-549.00702794,6.82e-05,2]
[423411698,1780090232000,-549.00702794,6.82e-05,2]
[423411687,1780090232000,-549.00702794,6.82e-05,2]
[423411673,1780090232000,-549.00702794,6.82e-05,2]
[423411683,1780090232000,-549.00702794,6.82e-05,2]
[423411661,1780090232000,-555.78489248,6.82e-05,2]
[423411663,1780090232000,-555.78489248,6.82e-05,2]
[423411665,1780090232000,-555.78489248,6.82e-05,2]
[423411667,1780090232000,-555.78489248,6.82e-05,2]
[423411669,1780090232000,-555.78489248,6.82e-05,2]
[423411670,1780090232000,-555.78489248,6.82e-05,2]
[423411672,1780090232000,-555.78489248,6.82e-05,2]
[423411671,1780090232000,-555.78489248,6.82e-05,2]
[423411706,1780090232000,-564.25722318,6.82e-05,2]
[423411674,1780090232000,-549.00702794,6.82e-05,2]
[423411675,1780090232000,-549.00702794,6.82e-05,2]
[423411677,1780090232000,-549.00702794,6.82e-05,2]
[423411676,1780090232000,-549.00702794,6.82e-05,2]
[423411678,1780090232000,-549.00702794,6.82e-05,2]
[423411679,1780090232000,-549.00702794,6.82e-05,2]
[423411682,1780090232000,-549.00702794,6.82e-05,2]
[423411681,1780090232000,-549.00702794,6.82e-05,2]
[423411680,1780090232000,-549.00702794,6.82e-05,2]
[423411684,1780090232000,-549.00702794,6.82e-05,2]
[423411685,1780090232000,-549.00702794,6.82e-05,2]
[423411708,1780090232000,-564.25722318,6.82e-05,2]
[423411689,1780090232000,-549.00702794,6.82e-05,2]
[423411709,1780090232000,-564.25722318,6.82e-05,2]
[423411733,1780090232000,-8698.0,7.035e-05,2]
[423411734,1780090232000,-603.51,7.037e-05,2]
[423411737,1780090232000,-603.51,7.145e-05,2]
[423411736,1780090232000,-603.51,7.109e-05,2]
[423411739,1780090232000,-299.99,7.252e-05,2]
[423411738,1780090232000,-9999.99,7.252e-05,2]
[423411742,1780090232000,-353.44,7.252e-05,2]
[423411740,1780090232000,-8823.83,7.252e-05,2]
[423411735,1780090232000,-603.51,7.073e-05,2]
[423411743,1780090232000,-9244.3,7.252e-05,2]
[423411745,1780090232000,-500.0,7.397e-05,2]
[423411744,1780090232000,-250.0,7.387e-05,2]
[423411746,1780090232000,-18636.6158281,7.405e-05,2]
[423411748,1780090232000,-1680.0,7.5e-05,2]
[423411747,1780090232000,-531.3635682,7.405e-05,2]
[423411751,1780090232000,-48244.14190882,7.59e-05,2]
[423411750,1780090232000,-250.0,7.501e-05,2]
[423411749,1780090232000,-255.0,7.5e-05,2]
[423411718,1780090232000,-3884.0,6.859e-05,2]
[423411732,1780090232000,-2055.0,7.021e-05,2]
[423411731,1780090232000,-603.51,7.002e-05,2]
[423411741,1780090232000,-1102.76,7.252e-05,2]
[423411729,1780090232000,-1105.95,6.935e-05,2]
[423411713,1780090232000,-564.25722318,6.82e-05,2]
[423411714,1780090232000,-564.25722318,6.82e-05,2]
[423411715,1780090232000,-564.25722314,6.82e-05,2]
[423411717,1780090232000,-239.0,6.859e-05,2]
[423411730,1780090232000,-603.51,6.966e-05,2]
[423411712,1780090232000,-564.25722318,6.82e-05,2]
[423411711,1780090232000,-564.25722318,6.82e-05,2]
[423411716,1780090232000,-603.51,6.858e-05,2]
[423411719,1780090232000,-17351.0,6.871e-05,2]
[423411720,1780090232000,-18546.0,6.872e-05,2]
[423411710,1780090232000,-564.25722318,6.82e-05,2]
[423411722,1780090232000,-3876.0,6.884e-05,2]
[423411724,1780090232000,-5124.0,6.892e-05,2]
[423411725,1780090232000,-603.51,6.894e-05,2]
[423411723,1780090232000,-883.0,6.892e-05,2]
[423411726,1780090232000,-11968.0,6.898e-05,2]
[423411728,1780090232000,-603.51,6.93e-05,2]
[423411727,1780090232000,-16752.0,6.912e-05,2]
[423411752,1780090232000,-5676.02198027,7.59e-05,2]
[423411721,1780090232000,-490.0,6.882e-05,2]
[423411879,1780090255000,-786.39988493,7.59e-05,2]
[423411881,1780090255000,-1541.07640051,7.59e-05,2]
[423411880,1780090255000,-1168.91929504,7.59e-05,2]
[423411886,1780090277000,-8401.48105519,7.59e-05,2]
[423411887,1780090277000,-2706.235,7.59e-05,2]
[423411885,1780090277000,-800.30798175,7.59e-05,2]
[423411884,1780090277000,-40452.92053555,7.59e-05,2]
[423411883,1780090277000,-289.5,7.59e-05,2]
[423411882,1780090277000,-72503.9332583,7.59e-05,2]
[423411889,1780090278000,-13443.45001656,7.59e-05,2]
[423411890,1780090278000,-3022.9014555,7.59e-05,2]
[423411888,1780090278000,-14701.99184282,7.59e-05,2]
[423411892,1780090278000,-3687.84523101,7.59e-05,2]
[423411895,1780090278000,-959.99116434,7.59e-05,2]
[423411893,1780090278000,-672.58734085,7.59e-05,2]
[423411894,1780090278000,-834.84277497,7.59e-05,2]
[423411896,1780090278000,-722.8955016,7.59e-05,2]
[423411891,1780090278000,-661.03999474,7.59e-05,2]
[423411899,1780090279000,-500.0,7.616e-05,2]
[423411897,1780090279000,-11074.01737725,7.59e-05,2]
[423411908,1780090279000,-2484.951491,7.945e-05,2]
[423411900,1780090279000,-251.7,7.642e-05,2]
[423411903,1780090279000,-885.11935146,7.672e-05,2]
[423411901,1780090279000,-2149.4282646,7.652e-05,2]
[423411902,1780090279000,-34326.7221045,7.652e-05,2]
[423411904,1780090279000,-215.5484138,7.804e-05,2]
[423411905,1780090279000,-591.0,7.808e-05,2]
[423411907,1780090279000,-165.55,7.93e-05,2]
[423411898,1780090279000,-17292.2041136,7.615e-05,2]
[423411909,1780090279000,-500.0,7.973e-05,2]
[423411917,1780090279000,-500.0,8.219e-05,2]
[423411915,1780090279000,-160.11,8.219e-05,2]
[423411916,1780090279000,-2000.0,8.219e-05,2]
[423411914,1780090279000,-5231.086875,8.178e-05,2]
[423411913,1780090279000,-184.4,8.113e-05,2]
[423411910,1780090279000,-7708.24710786,8e-05,2]
[423411911,1780090279000,-400.0,8e-05,2]
[423411918,1780090279000,-9676.3380055,8.219e-05,2]
[423411912,1780090279000,-320.0,8.107e-05,2]
[423411906,1780090279000,-170.644394,7.81e-05,2]
[423411922,1780090288000,-24.30542579,6.819e-05,2]
[423411921,1780090288000,-364.67769752,6.819e-05,2]
[423411920,1780090288000,-317.41993126,6.819e-05,2]
[423411919,1780090288000,1000.0,0.00027397,120]
[423411923,1780090290000,706.40305457,0.00010039,3]
[423411925,1780090365000,330.0,8.219e-05,3]
[423411926,1780090450000,2012.0,0.00010053,5]
[423411927,1780090508000,168.0,0.00026418,120]
[423411928,1780090509000,168.0,0.00027738,120]
[423411929,1780090527000,166.0,0.00025077,120]
[423411930,1780090571000,-150.0,6.614e-05,2]
[423411932,1780090593000,4339.54272557,6.242e-05,2]
[423411931,1780090593000,208.85727443,6.242e-05,2]
[423411935,1780090594000,-335.6702575,6.669e-05,2]
[423411934,1780090594000,250.0,6.595e-05,2]
[423411933,1780090594000,250.0,6.428e-05,2]
[423411936,1780090639000,-335.6702575,6.669e-05,2]
[423411942,1780090640000,500.0,6.594e-05,2]
[423411937,1780090640000,317.94915496,6.594e-05,2]
[423411938,1780090640000,500.0,6.594e-05,2]
[423411939,1780090640000,500.0,6.594e-05,2]
[423411940,1780090640000,500.0,6.594e-05,2]
[423411941,1780090640000,500.0,6.594e-05,2]
[423411943,1780090640000,500.0,6.594e-05,2]
[423411952,1780090640000,500.0,6.594e-05,2]
[423411945,1780090640000,500.0,6.594e-05,2]
[423411951,1780090640000,500.0,6.594e-05,2]
[423411950,1780090640000,500.0,6.594e-05,2]
[423411949,1780090640000,500.0,6.594e-05,2]
[423411944,1780090640000,166.25043591,6.594e-05,2]
[423411947,1780090640000,500.0,6.594e-05,2]
[423411946,1780090640000,500.0,6.594e-05,2]
[423411948,1780090640000,500.0,6.594e-05,2]
[423411956,1780090641000,500.0,6.594e-05,2]
[423411955,1780090641000,500.0,6.594e-05,2]
[423411954,1780090641000,500.0,6.594e-05,2]
[423411953,1780090641000,500.0,6.594e-05,2]
[423411957,1780090642000,-335.6702575,6.669e-05,2]
[423411958,1780090643000,1000.0,6.216e-05,2]
[423411959,1780090687000,-171.4109864,6.631e-05,2]
[423411960,1780090691000,-171.4109864,6.669e-05,2]
[423411961,1780090696000,576.0,6.314e-05,2]
[423411962,1780090741000,-343.8682411,6.669e-05,2]
[423411963,1780090744000,-343.8682411,6.706e-05,2]
[423411964,1780090767000,-445.5295,6.706e-05,2]
[423411965,1780090792000,-445.5295,6.706e-05,2]
[423411967,1780090813000,11782.71,6.235e-05,2]
[423411966,1780090813000,330.0,8.219e-05,3]
[423411968,1780090816000,-287.3627589,6.706e-05,2]
[423411969,1780090837000,150.0,6.296e-05,2]
[423411972,1780090838000,150.0,6.483e-05,2]
[423411971,1780090838000,150.0,6.421e-05,2]
[423411970,1780090838000,150.0,6.359e-05,2]
[423411973,1780090838000,175.0,6.546e-05,2]
[423411975,1780090839000,1200.0,6.234e-05,2]
[423411974,1780090839000,300.0,6.234e-05,2]
[423411976,1780090840000,-215.5484138,6.717e-05,2]
[423411977,1780090867000,-500.0,6.74e-05,2]
[423411978,1780090867000,152.0,9.72e-05,7]
[423411979,1780090891000,-500.0,6.739e-05,2]
[423411981,1780090943000,-400.0,6.739e-05,2]
[423411982,1780091020000,330.0,8.219e-05,3]
[423411983,1780091060000,1607.0,0.00010027,5]
[423411984,1780091063000,166.66,6.329e-05,2]
[423411985,1780091064000,166.66,6.538e-05,2]
[423411986,1780091087000,355.81,6.147e-05,2]
[423411987,1780091102000,169.0,0.00026102,120]
[423411988,1780091103000,169.0,0.00027407,120]
[423411989,1780091130000,163.0,0.00024796,120]
[423411990,1780091159000,330.0,8.219e-05,3]
[423411991,1780091223000,163.91,4.944e-05,2]
[423411992,1780091246000,700.0,9.8e-05,3]
[423411993,1780091247000,1000.0,9.9e-05,3]
[423411994,1780091249000,1400.0,0.0001,3]
[423411995,1780091340000,1000.0,0.00028078,120]
[423411997,1780091383000,201.06,5.906e-05,2]
[423411996,1780091383000,201.06,5.873e-05,2]
[423411998,1780091384000,201.06,5.938e-05,2]
[423411999,1780091384000,201.06,5.971e-05,2]
[423412000,1780091384000,201.06,6.004e-05,2]
[423412001,1780091385000,201.06,6.036e-05,2]
[423412002,1780091386000,201.06,6.069e-05,2]
[423412003,1780091387000,201.06,6.101e-05,2]
[423412004,1780091387000,201.06,6.134e-05,2]
[423412006,1780091387000,201.06,6.199e-05,2]
[423412005,1780091387000,201.06,6.166e-05,2]
[423412008,1780091387000,201.06,6.264e-05,2]
[423412007,1780091387000,201.06,6.231e-05,2]
[423412010,1780091387000,201.06,6.329e-05,2]
[423412011,1780091387000,201.06,6.362e-05,2]
[423412012,1780091387000,201.06,6.394e-05,2]
[423412013,1780091387000,201.06,6.427e-05,2]
[423412014,1780091387000,201.06,6.459e-05,2]
[423412015,1780091387000,201.06,6.492e-05,2]
[423412009,1780091387000,201.06,6.297e-05,2]
[423412016,1780091405000,169.0,0.00026272,120]
[423412017,1780091406000,169.0,0.00027586,120]
[423412028,1780091431000,-1522.29,6.816e-05,2]
[423412031,1780091431000,-1522.29,6.89e-05,2]
[423412029,1780091431000,-1522.29,6.853e-05,2]
[423412032,1780091431000,-3010.26158467,6.914e-05,2]
[423412030,1780091431000,-300.0,6.888e-05,2]
[423412027,1780091431000,-1200.0,6.815e-05,2]
[423412023,1780091431000,-363.85488172,6.743e-05,2]
[423412024,1780091431000,-166.66,6.747e-05,2]
[423412026,1780091431000,-215.5484138,6.78e-05,2]
[423412021,1780091431000,-450.19088126,6.743e-05,2]
[423412022,1780091431000,-708.24423702,6.743e-05,2]
[423412020,1780091431000,-250.0,6.741e-05,2]
[423412025,1780091431000,-1522.29,6.78e-05,2]
[423412033,1780091431000,-209.09056759,6.917e-05,2]
[423412042,1780091431000,-500.0,6.961e-05,2]
[423412039,1780091431000,-7662.0,6.945e-05,2]
[423412034,1780091431000,-1522.29,6.927e-05,2]
[423412049,1780091431000,-1522.29,7.001e-05,2]
[423412047,1780091431000,-1522.29,6.964e-05,2]
[423412046,1780091431000,-500.0,6.961e-05,2]
[423412045,1780091431000,-509.44503548,6.961e-05,2]
[423412040,1780091431000,-166.66,6.956e-05,2]
[423412048,1780091431000,-150.0,7e-05,2]
[423412043,1780091431000,-222.19395188,6.961e-05,2]
[423412038,1780091431000,-277.0,6.945e-05,2]
[423412041,1780091431000,-255.27438826,6.961e-05,2]
[423412035,1780091431000,-12612.0,6.937e-05,2]
[423412036,1780091431000,-6238.0,6.938e-05,2]
[423412044,1780091431000,-500.0,6.961e-05,2]
[423412037,1780091431000,-537.0,6.944e-05,2]
[423412099,1780091432000,-156.604429,7.654e-05,2]
[423412094,1780091432000,-1175.497728,7.654e-05,2]
[423412098,1780091432000,-87411.9109349,7.654e-05,2]
[423412093,1780091432000,-1175.497728,7.654e-05,2]
[423412091,1780091432000,-1175.497728,7.654e-05,2]
[423412090,1780091432000,-168792.5,7.654e-05,2]
[423412089,1780091432000,-6156.792011,7.648e-05,2]
[423412087,1780091432000,-247060.0,7.646e-05,2]
[423412088,1780091432000,-237567.5,7.646e-05,2]
[423412082,1780091432000,-151.0,7.587e-05,2]
[423412095,1780091432000,-151.0,7.654e-05,2]
[423412092,1780091432000,-1175.497728,7.654e-05,2]
[423412096,1780091432000,-151.0,7.654e-05,2]
[423412113,1780091432000,-512.0,7.671e-05,2]
[423412100,1780091432000,-156.604429,7.654e-05,2]
[423412101,1780091432000,-156.604429,7.654e-05,2]
[423412103,1780091432000,-156.604429,7.654e-05,2]